bitfinex/quotes_BTCUSD_20251221
["timestamp","ask_amount","ask_price","bid_price","bid_amount"]
[1766325099307,0.00576,87831.0,87816.0,0.01852779]
[1766325099830,0.00576,87831.0,87816.0,0.02428779]
[1766325100179,0.23607,87830.0,87816.0,0.00576]
[1766325100386,0.28049,87828.0,87815.0,0.00611908]
[1766325100603,0.01707903,87827.0,87815.0,0.00611908]
[1766325100984,0.28013,87826.0,87806.0,0.0001]
[1766325101183,0.27993,87820.0,87802.0,0.00576]
[1766325101387,0.27417,87817.0,87802.0,0.00576]
[1766325101569,0.2742776,87817.0,87802.0,0.00576]
[1766325101770,0.0001076,87817.0,87802.0,0.00576]
[1766325102408,6e-07,87817.0,87808.0,0.46953]
[1766325102621,6e-07,87817.0,87810.0,0.57523]
[1766325102769,6e-07,87817.0,87811.0,0.57523]
[1766325103889,6e-07,87817.0,87810.0,0.46953]
[1766325104350,6e-07,87817.0,87811.0,0.57523]
[1766325105330,6e-07,87817.0,87793.0,0.11833242]
[1766325105532,6e-07,87817.0,87794.0,0.06319324]
[1766325105756,0.27417,87815.0,87794.0,0.00576]
[1766325105991,0.27417,87815.0,87795.0,0.00576]
[1766325106158,6e-07,87817.0,87788.0,0.57523]
[1766325106159,0.27417,87813.0,87796.0,0.00576]
[1766325106521,0.27417,87813.0,87766.0,0.1461]
[1766325106522,0.23607,87794.0,87764.0,0.57523]
[1766325106699,0.23607,87791.0,87765.0,0.00576]
[1766325106931,0.02284564,87793.0,87765.0,0.00576]
[1766325106932,0.01708622,87790.0,87768.0,0.57523]
[1766325107136,0.27417,87789.0,87768.0,0.57523]
[1766325107341,0.01708661,87788.0,87768.0,0.57523]
[1766325107542,0.27417,87789.0,87768.0,0.57523]
[1766325108170,0.27417,87789.0,87765.0,0.00576]
[1766325108171,0.23607,87786.0,87765.0,0.00576]
[1766325108371,0.00576,87793.0,87765.0,0.00586768]
[1766325108372,0.27417,87782.0,87765.0,0.00586768]
[1766325108545,0.27417,87781.0,87765.0,0.00586768]
[1766325108753,0.03017148,87801.0,87765.0,0.00586768]
[1766325108754,0.03017148,87800.0,87765.0,0.00586768]
[1766325108973,0.23607,87788.0,87765.0,0.00586768]
[1766325109178,0.26775,87784.0,87761.0,0.00576]
[1766325109399,0.00576,87783.0,87762.0,1.04476]
[1766325109797,0.00576,87783.0,87763.0,0.57523]
[1766325109953,0.04,87782.0,87763.0,0.57523]
[1766325110708,0.23607,87780.0,87758.0,0.00576]
[1766325110847,0.26775,87779.0,87758.0,0.00576]
[1766325111365,0.26775,87779.0,87759.0,0.01367381]
[1766325111801,0.26775,87779.0,87758.0,0.00576]
[1766325111802,0.00576,87783.0,87758.0,0.00576]
[1766325111975,0.000549,87759.0,87751.0,0.00576]
[1766325112275,0.00576,87767.0,87753.0,1.04476]
[1766325112477,0.00576,87772.0,87756.0,0.57523]
[1766325112795,0.00576,87774.0,87757.0,0.01943412]
[1766325112996,0.00576,87774.0,87757.0,0.00576]
[1766325113803,0.00576,87774.0,87758.0,0.01367396]
[1766325114465,0.00576,87774.0,87757.0,0.00576]
[1766325115037,0.00576,87776.0,87758.0,0.01367396]
[1766325115276,0.00576,87783.0,87757.0,0.00576]
[1766325115478,0.50382,87782.0,87757.0,0.00576]
[1766325116053,0.00576,87783.0,87757.0,0.00576]
[1766325116740,0.26775,87781.0,87757.0,0.00247]
[1766325116936,0.26775,87777.0,87757.0,0.00247]
[1766325117159,0.26775,87775.0,87757.0,0.00247]
[1766325117486,0.50382,87773.0,87757.0,0.00247]
[1766325117661,0.00576,87775.0,87773.0,0.00055]
[1766325117860,0.26775,87774.0,87757.0,0.00247]
[1766325119459,0.000549,87757.0,87721.0,0.11833242]
[1766325119617,0.000549,87757.0,87744.0,0.57523]
[1766325119618,0.00065652,87757.0,87744.0,0.57523]
[1766325119821,0.00010752,87757.0,87744.0,0.57523]
[1766325120157,0.23607,87773.0,87748.0,0.57523]
[1766325120370,0.00576,87777.0,87759.0,0.57523]
[1766325121020,0.00099999,87810.0,87757.0,0.00576]
[1766325121021,0.26786,87793.0,87761.0,0.57523]
[1766325121229,0.0456,87790.0,87769.0,0.11833242]
[1766325121446,0.23607,87784.0,87770.0,0.00576]
[1766325121664,0.27362,87783.0,87762.0,0.00576]
[1766325121813,0.27362,87783.0,87763.0,0.46953]
[1766325122012,0.27362,87783.0,87764.0,0.57523]
[1766325122530,0.00576,87783.0,87763.0,1.04476]
[1766325122731,0.26786,87802.0,87783.0,0.00055]
[1766325122943,0.26786,87800.0,87779.0,0.00576]
[1766325123131,0.2621,87796.0,87775.0,0.00576]
[1766325123350,0.25634,87792.0,87772.0,0.00576]
[1766325123666,0.25634,87789.0,87772.0,0.00576]
[1766325123887,0.2621,87788.0,87767.0,0.00576]
[1766325125538,0.01708681,87787.0,87767.0,0.00576]
[1766325125772,0.25634,87780.0,87762.0,0.00576]
[1766325126004,0.2621,87779.0,87762.0,0.00576]
[1766325126408,0.00010768,87789.0,87764.0,0.57441]
[1766325126581,0.00576,87788.0,87779.0,0.00055]
[1766325126779,0.00576,87788.0,87762.0,0.00576]
[1766325127023,0.25579,87787.0,87762.0,0.58017]
[1766325127185,0.25579,87787.0,87763.0,0.57441]
[1766325127367,0.25579,87787.0,87766.0,0.57441]
[1766325127565,0.00576,87786.0,87766.0,0.57441]
[1766325128300,0.00576,87786.0,87762.0,0.00576]
[1766325128301,0.00576,87786.0,87772.0,1.03947]
[1766325128468,0.00020768,87789.0,87773.0,0.47873163]
[1766325128672,0.00576,87788.0,87773.0,0.46506]
[1766325129428,0.00020768,87789.0,87777.0,0.46506]
[1766325129614,0.03017148,87812.0,87782.0,0.57441]
[1766325129818,0.49268,87810.0,87784.0,0.57441]
[1766325130026,0.23113,87806.0,87784.0,0.57441]
[1766325130190,0.26155,87804.0,87784.0,0.57441]
[1766325130391,0.26731,87803.0,87781.0,0.46506]
[1766325131230,0.26155,87801.0,87778.0,0.58017]
[1766325131428,0.26155,87801.0,87778.0,0.58027768]
[1766325131838,0.26155,87801.0,87778.0,1.04533768]
[1766325132043,0.04,87814.0,87784.0,0.57441]
[1766325132195,0.26155,87806.0,87785.0,0.00576]
[1766325132392,0.00576,87808.0,87787.0,0.46506]
[1766325132631,0.00576,87808.0,87786.0,1.03947]
[1766325132946,0.000549,87786.0,87778.0,0.00010768]
[1766325133407,0.26155,87793.0,87779.0,0.00576]
[1766325133835,0.00576,87797.0,87761.0,0.46506]
[1766325133836,0.000549,87779.0,87761.0,0.46506]
[1766325134032,0.261889,87779.0,87761.0,0.47082]
[1766325134480,0.00576,87784.0,87766.0,0.46506]
[1766325134674,0.00586762,87784.0,87767.0,0.58017]
[1766325135033,0.00010762,87784.0,87769.0,0.11833242]
[1766325135244,0.00576,87796.0,87776.0,0.46506]
[1766325135437,0.00576,87796.0,87778.0,1.03947]
[1766325135660,0.00576,87796.0,87778.0,1.03957762]
[1766325136238,0.01049326,87795.0,87778.0,1.03957762]
[1766325136581,0.00576,87796.0,87780.0,1.03947]
[1766325136721,0.00576,87796.0,87779.0,0.01852779]
[1766325136925,0.00576,87796.0,87779.0,1.03947]
[1766325137125,0.00576,87796.0,87780.0,0.57441]
[1766325137941,0.00576,87796.0,87769.0,0.11833242]
[1766325137942,0.26145,87793.0,87766.0,0.57441]
[1766325138188,0.26134,87789.0,87769.0,0.11833242]
[1766325139202,0.26134,87789.0,87770.0,0.57441]
[1766325140526,0.2671,87789.0,87770.0,0.57441]
[1766325141746,0.001099,87770.0,87750.0,0.57441]
[1766325141872,0.001099,87770.0,87751.0,0.00576]
[1766325142090,0.00576,87772.0,87751.0,0.00576]
[1766325142297,0.02284973,87772.0,87751.0,0.00576]
[1766325142514,0.00576,87772.0,87751.0,0.00576]
[1766325142915,0.26134,87770.0,87751.0,0.00576]
[1766325143150,0.21557,87768.0,87751.0,0.00576]
[1766325143552,0.21547,87768.0,87751.0,0.00576]
[1766325143902,0.26134,87767.0,87751.0,0.00576]
[1766325144125,0.26134,87767.0,87751.0,0.02272924]
[1766325145551,0.26134,87767.0,87751.0,0.01696924]
[1766325145746,0.000549,87751.0,87744.0,0.00576]
[1766325146033,0.00576,87762.0,87744.0,0.00576]
[1766325146239,0.26134,87761.0,87747.0,0.00024926]
[1766325146936,0.26134,87760.0,87747.0,0.00035678]
[1766325147120,0.24522,87743.0,87719.0,0.61315]
[1766325147397,0.25098,87742.0,87724.0,0.11833242]
[1766325147608,0.00010756,87743.0,87725.0,0.61295]
[1766325147778,0.03017148,87763.0,87724.0,0.11833242]
[1766325147779,0.00576,87741.0,87728.0,0.61295]
[1766325147976,0.00576,87741.0,87728.0,0.49257826]
[1766325148177,0.00576,87741.0,87728.0,0.00035826]
[1766325148379,0.00576,87748.0,87739.0,0.61295]
[1766325148582,0.00576,87748.0,87740.0,0.49222]
[1766325148782,0.2117,87772.0,87744.0,0.49222]
[1766325149000,0.24533,87771.0,87753.0,0.11833242]
[1766325149319,0.000549,87753.0,87745.0,0.00576]
[1766325149554,0.24533,87761.0,87745.0,0.00576]
[1766325150093,0.00576,87762.0,87746.0,1.10517]
[1766325151851,0.00576,87762.0,87746.0,0.49222]
[1766325152234,0.00576,87762.0,87745.0,0.00576]
[1766325152440,0.00576,87762.0,87732.0,0.04564]
[1766325152441,0.000549,87745.0,87719.0,0.04584]
[1766325152625,0.00576,87746.0,87739.0,0.49246929]
[1766325152834,0.24588,87760.0,87740.0,0.01367677]
[1766325153030,0.00576,87759.0,87739.0,0.61319929]
[1766325153918,0.00576,87758.0,87741.0,0.11833242]
[1766325154077,0.00576,87758.0,87739.0,0.61319929]
[1766325154255,0.24588,87757.0,87739.0,0.00024929]
[1766325154679,0.20856,87757.0,87739.0,0.00024929]
[1766325154906,0.24588,87756.0,87739.0,0.00024929]
[1766325155303,0.00576,87758.0,87740.0,1.04884]
[1766325155919,0.00576,87758.0,87740.0,0.45463]
[1766325156091,0.25164,87758.0,87740.0,0.45463]
[1766325156288,0.20697,87755.0,87736.0,0.00576]
[1766325156492,0.24588,87756.0,87736.0,0.00576]
[1766325156493,0.26272323,87754.0,87736.0,0.00576]
[1766325156699,0.24563,87753.0,87736.0,0.00576]
[1766325157299,0.24563,87761.0,87737.0,0.59421]
[1766325157516,0.00576,87760.0,87741.0,0.59421]
[1766325157723,0.25139,87760.0,87741.0,0.45463]
[1766325159045,0.24563,87760.0,87741.0,0.45463]
[1766325159223,0.00576,87759.0,87741.0,0.45463]
[1766325159873,0.00576,87758.0,87741.0,0.45463]
[1766325160275,0.00576,87758.0,87736.0,0.00576]
[1766325160527,0.24563,87755.0,87736.0,0.00576]
[1766325160742,0.24563,87753.0,87736.0,0.00521]
[1766325160913,0.00576,87758.0,87736.0,0.59942]
[1766325161114,0.01709265,87757.0,87737.0,0.45463]
[1766325161336,0.26272265,87757.0,87738.0,0.59421]
[1766325161549,0.26272265,87757.0,87737.0,0.45463]
[1766325161550,0.24563,87757.0,87737.0,0.45463]
[1766325161751,0.01709284,87756.0,87737.0,0.45463]
[1766325162779,0.20668,87753.0,87730.0,0.00576]
[1766325162953,0.25084,87748.0,87730.0,0.00576]
[1766325163152,0.25084,87746.0,87730.0,0.00576]
[1766325163355,0.25084,87745.0,87730.0,0.00576]
[1766325163555,0.25084,87744.0,87730.0,0.00576]
[1766325163781,0.25084,87744.0,87728.0,0.00035826]
[1766325164941,0.00576,87747.0,87728.0,0.00035826]
[1766325164942,0.20597,87739.0,87728.0,0.00035826]
[1766325165089,0.04,87732.0,87686.0,0.06110362]
[1766325165285,0.20597,87728.0,87704.0,0.59421]
[1766325165488,0.25028,87724.0,87701.0,0.59421]
[1766325165689,0.04035893,87732.0,87700.0,0.0024]
[1766325165690,0.25028,87722.0,87700.0,0.0024]
[1766325165894,0.06274879,87732.0,87701.0,0.11833242]
[1766325166099,0.00035893,87732.0,87731.0,0.00024933]
[1766325166321,0.25028,87746.0,87731.0,0.00024933]
[1766325166493,0.00576,87745.0,87731.0,0.00035689]
[1766325166689,0.03010117,87764.0,87732.0,0.59421]
[1766325166889,0.01,87761.0,87736.0,0.59421]
[1766325167085,0.25028,87758.0,87745.0,0.000191]
[1766325167293,0.00576,87757.0,87736.0,0.59421]
[1766325167702,0.25028,87758.0,87736.0,0.59421]
[1766325167906,0.01123876,87777.0,87732.0,0.11833242]
[1766325167907,0.005569,87757.0,87742.0,0.45463]
[1766325168161,0.02409408,87768.0,87737.0,0.00576]
[1766325168361,0.00576,87767.0,87757.0,0.00055]
[1766325168532,0.00576,87767.0,87749.0,0.59421]
[1766325169622,0.000549,87749.0,87736.0,0.00576]
[1766325169879,0.000549,87749.0,87737.0,0.59421]
[1766325170100,0.04564,87767.0,87736.0,0.00576]
[1766325170101,0.1325,87775.0,87743.0,0.45463]
[1766325170306,0.20222,87779.0,87749.0,0.45463]
[1766325170514,0.03457641,87778.0,87758.0,0.45463]
[1766325170725,0.00576,87778.0,87763.0,0.59421]
[1766325170924,0.00576,87778.0,87765.0,0.59421]
[1766325171133,0.00576,87778.0,87764.0,0.45463]
[1766325171725,0.0058677,87778.0,87764.0,0.45463]
[1766325172098,0.0001077,87778.0,87759.0,0.00576]
[1766325172345,0.00576,87777.0,87759.0,0.00576]
[1766325172538,0.13826,87777.0,87759.0,0.00576]
[1766325172743,0.01708895,87776.0,87759.0,0.00576]
[1766325172900,0.14958895,87776.0,87759.0,0.00576]
[1766325173103,0.18594962,87776.0,87750.0,0.59421]
[1766325173304,0.1325,87770.0,87751.0,0.00576]
[1766325173567,0.0001,87759.0,87751.0,0.00576]
[1766325173699,0.0001077,87778.0,87759.0,0.0001]
[1766325173904,0.00576,87777.0,87761.0,1.04884]
[1766325174228,0.0001077,87778.0,87762.0,1.06251334]
[1766325174388,0.0001077,87778.0,87761.0,0.00576]
[1766325174616,7e-07,87778.0,87769.0,1.04884]
[1766325175493,7e-07,87778.0,87771.0,0.45463]
[1766325175698,7e-07,87778.0,87776.0,1.04884]
[1766325175919,7e-07,87778.0,87777.0,0.013671]
[1766325176172,0.01404771,87796.0,87780.0,0.59421]
[1766325176342,0.0514,87806.0,87796.0,0.000442]
[1766325176507,0.00586766,87806.0,87796.0,0.000442]
[1766325176706,0.00576,87816.0,87806.0,0.00055]
[1766325176913,0.00576,87816.0,87798.0,0.45463]
[1766325177160,0.00576,87816.0,87799.0,0.01366758]
[1766325177419,0.00576,87816.0,87798.0,0.45463]
[1766325177623,0.000107,87798.0,87795.0,0.00576]
[1766325177823,0.000107,87798.0,87778.0,0.59421]
[1766325178024,0.14368,87807.0,87778.0,0.59421]
[1766325178025,0.00055,87795.0,87779.0,0.00576]
[1766325178229,0.0001076,87795.0,87782.0,0.59421]
[1766325178468,0.0001076,87795.0,87785.0,0.59421]
[1766325178594,0.00576,87806.0,87786.0,0.59997]
[1766325178790,0.00576,87806.0,87788.0,0.59421]
[1766325179804,0.14368,87816.0,87793.0,0.11833242]
[1766325180011,0.00576,87810.0,87793.0,0.11833242]
[1766325180188,0.00576,87810.0,87794.0,1.04884]
[1766325180420,0.00576,87817.0,87797.0,0.59421]
[1766325180812,0.00576,87817.0,87798.0,0.01366773]
[1766325181045,0.03010117,87834.0,87817.0,0.000442]
[1766325181264,0.00940339,87833.0,87812.0,0.59421]
[1766325181475,0.00940339,87833.0,87798.0,0.13200015]
[1766325181476,0.04564,87835.0,87820.0,0.59421]
[1766325181682,0.04564,87835.0,87821.0,0.45463]
[1766325181921,0.04564,87835.0,87822.0,0.013664]
[1766325182153,0.04564,87835.0,87821.0,0.45463]
[1766325182154,0.04604,87846.0,87821.0,0.45463]
[1766325182425,0.00035901,87835.0,87821.0,0.45463]
[1766325182641,0.00035901,87835.0,87819.0,0.45463]
[1766325182888,0.0004,87846.0,87824.0,0.59421]
[1766325183105,0.00020761,87841.0,87835.0,0.000359]
[1766325183325,0.00020761,87841.0,87829.0,0.57296242]
[1766325183326,4.61e-06,87841.0,87832.0,1.0546]
[1766325183559,4.61e-06,87841.0,87832.0,0.00576]
[1766325183777,0.00778744,87859.0,87836.0,0.45463]
[1766325183983,0.00778744,87859.0,87837.0,1.04884]
[1766325184192,0.00778744,87859.0,87837.0,0.00010761]
[1766325184403,8.239e-05,87837.0,87821.0,0.45463]
[1766325184632,0.00010751,87837.0,87822.0,0.00576]
[1766325184842,0.00576,87856.0,87829.0,0.59421]
[1766325185042,0.19288,87858.0,87833.0,0.57258]
[1766325185248,0.00576,87856.0,87834.0,0.00576]
[1766325185464,0.00576,87856.0,87776.0,0.06166766]
[1766325185680,0.19763,87843.0,87813.0,0.57258]
[1766325185894,0.00576,87843.0,87815.0,0.57258]
[1766325186095,0.00576,87845.0,87817.0,0.57258]
[1766325186298,0.00576,87845.0,87827.0,0.57258]
[1766325186904,0.19763,87852.0,87827.0,0.57258]
[1766325187137,0.00576,87852.0,87829.0,0.57258]
[1766325187325,0.00576,87852.0,87831.0,0.57258]
[1766325187533,0.00576,87852.0,87832.0,0.00576]
[1766325187731,0.000632,87832.0,87828.0,0.01910379]
[1766325187876,0.000632,87832.0,87823.0,0.00576]
[1766325188315,0.02283611,87842.0,87823.0,0.00576]
[1766325188653,0.55333,87840.0,87770.0,0.00199998]
[1766325188851,0.05694631,87802.0,87801.0,0.00576]
[1766325189027,0.05694631,87802.0,87794.0,0.0456]
[1766325189235,0.0626875,87832.0,87801.0,0.11833242]
[1766325189433,0.05692815,87830.0,87802.0,0.03183635]
[1766325189631,0.05695085,87795.0,87794.0,0.0456]
[1766325189813,0.05695085,87795.0,87764.0,0.11833242]
[1766325189814,8.7e-07,87797.0,87775.0,0.0456]
[1766325190011,0.05696317,87776.0,87775.0,0.00010751]
[1766325190217,0.22783413,87784.0,87775.0,0.00586751]
[1766325190423,0.05696317,87776.0,87775.0,0.00586751]
[1766325190649,0.01139406,87765.0,87763.0,0.57258]
[1766325190848,0.01139406,87765.0,87764.0,1.15391242]
[1766325191062,0.01139406,87765.0,87764.0,0.53976186]
[1766325191063,4.37e-06,87765.0,87764.0,0.53976186]
[1766325191381,0.04102359,87765.0,87764.0,0.16308616]
[1766325191592,0.0113951,87757.0,87751.0,0.0456]
[1766325191796,0.01139497,87758.0,87752.0,0.00576]
[1766325192007,0.01139536,87755.0,87753.0,0.11833242]
[1766325192139,0.06837787,87748.0,87742.0,0.0456]
[1766325192339,0.01139627,87748.0,87747.0,0.11833242]
[1766325192521,0.01139588,87751.0,87747.0,0.11833242]
[1766325192522,0.01139588,87751.0,87747.0,0.12409242]
[1766325192951,0.01139601,87750.0,87747.0,0.12409242]
[1766325193153,0.06837638,87750.0,87747.0,0.47453242]
[1766325193353,0.0569807,87749.0,87748.0,0.35044]
[1766325193552,7e-07,87749.0,87748.0,0.68469]
[1766325193807,2.51e-06,87756.0,87747.0,0.48971242]
[1766325194039,0.01139601,87750.0,87747.0,0.48971242]
[1766325194191,0.01139601,87750.0,87749.0,0.10484151]
[1766325194394,0.01139575,87752.0,87749.0,0.47046151]
[1766325194595,0.01139575,87752.0,87751.0,0.10484151]
[1766325194821,0.06837813,87748.0,87747.0,0.00576]
[1766325194979,0.01139627,87748.0,87747.0,0.00576]
[1766325195216,0.01139601,87750.0,87747.0,0.37138]
[1766325195430,0.01139692,87743.0,87736.0,0.08661215]
[1766325195634,0.01139692,87743.0,87740.0,0.00576]
[1766325196085,0.02357925,87747.0,87740.0,0.00576]
[1766325196325,0.03497565,87747.0,87741.0,0.35044]
[1766325196505,0.01139653,87746.0,87741.0,0.35044]
[1766325196812,0.02357925,87747.0,87741.0,0.35044]
[1766325197291,0.03497565,87747.0,87741.0,0.35044]
[1766325197467,0.02357925,87747.0,87741.0,0.35044]
[1766325197665,0.01139666,87745.0,87740.0,0.00576]
[1766325197890,0.02357925,87747.0,87740.0,0.00576]
[1766325197891,0.03497565,87747.0,87740.0,0.3562]
[1766325198070,0.01139666,87745.0,87740.0,0.3562]
[1766325198271,0.03497565,87747.0,87740.0,0.3562]
[1766325198499,0.03497565,87747.0,87740.0,0.00576]
[1766325198692,0.02357925,87747.0,87740.0,0.00576]
[1766325198858,0.01139666,87745.0,87740.0,0.00576]
[1766325199256,0.06837532,87751.0,87741.0,0.33904]
[1766325199468,0.06837532,87751.0,87740.0,0.00576]
[1766325199469,0.01139692,87743.0,87740.0,0.00576]
[1766325199681,0.05698655,87740.0,87739.0,0.0001]
[1766325199879,0.01139795,87735.0,87731.0,0.00600933]
[1766325200162,0.01139808,87734.0,87731.0,0.00611689]
[1766325200359,0.01139782,87736.0,87731.0,0.00611689]
[1766325200659,0.01139769,87737.0,87736.0,0.0001]
[1766325200860,0.01139744,87739.0,87736.0,0.0001]
[1766325201372,0.00576,87741.0,87737.0,0.08661215]
[1766325201619,5.36e-06,87749.0,87739.0,0.11761]
[1766325201792,0.01139692,87743.0,87741.0,0.0001]
[1766325202021,0.0113964,87747.0,87741.0,0.0001]
[1766325202229,0.0113964,87747.0,87739.0,0.11761]
[1766325202230,0.01139653,87746.0,87739.0,0.11761]
[1766325202405,0.0113964,87747.0,87739.0,0.11761]
[1766325202613,0.01139549,87754.0,87739.0,0.11761]
[1766325202833,0.0113951,87757.0,87754.0,0.0001]
[1766325203196,0.01139432,87763.0,87754.0,0.0001]
[1766325203394,0.00010251,87756.0,87751.0,0.08661215]
[1766325203780,0.00010251,87756.0,87752.0,0.0136749]
[1766325203992,0.00010251,87756.0,87751.0,0.08661215]
[1766325204191,2.51e-06,87756.0,87751.0,0.08661215]
[1766325204387,0.06836479,87765.0,87751.0,0.08661215]
[1766325204388,0.01139393,87766.0,87752.0,0.0136749]
[1766325204635,0.01139393,87766.0,87765.0,0.08661215]
[1766325205234,0.01194306,87765.0,87762.0,0.00576]
[1766325205610,0.01139406,87765.0,87762.0,0.00576]
[1766325206029,0.01139276,87775.0,87762.0,0.00576]
[1766325206233,0.45554054,87808.0,87762.0,0.00576]
[1766325206234,0.0001075,87772.0,87766.0,0.08661215]
[1766325206413,0.0001075,87772.0,87767.0,0.01367256]
[1766325206610,0.0001075,87772.0,87766.0,0.08661215]
[1766325206611,0.0001075,87772.0,87768.0,0.0194324]
[1766325206809,0.0001075,87772.0,87768.0,0.00576]
[1766325208446,0.0001075,87772.0,87768.0,0.00485555]
[1766325209902,0.01150065,87772.0,87768.0,0.00485555]
[1766325210181,0.01139328,87771.0,87768.0,0.00485555]
[1766325211090,0.01139419,87764.0,87756.0,0.04564]
[1766325211408,0.01139393,87766.0,87757.0,0.00576]
[1766325211540,0.05696814,87769.0,87766.0,0.08661215]
[1766325211742,0.06836168,87769.0,87766.0,0.08661215]
[1766325211970,0.01139354,87769.0,87766.0,0.08606315]
[1766325212375,0.06836153,87769.0,87766.0,0.08606315]
[1766325212711,0.06836141,87769.0,87766.0,0.08606315]
[1766325212885,0.01150065,87772.0,87766.0,0.08606315]
[1766325213092,0.0001075,87772.0,87769.0,0.000549]
[1766325213427,0.0001075,87772.0,87766.0,0.08606315]
[1766325214184,0.01139224,87779.0,87766.0,0.08606315]
[1766325214763,0.01139159,87784.0,87779.0,0.000442]
[1766325214966,0.05695662,87787.0,87783.0,0.08661215]
[1766325215161,0.06834907,87785.0,87783.0,0.08650515]
[1766325215390,0.05695409,87790.0,87783.0,0.08650515]
[1766325215590,0.0113912,87787.0,87783.0,0.08650515]
[1766325215792,0.01139133,87786.0,87783.0,0.08650515]
[1766325215996,0.00576,87788.0,87742.0,0.01139705]
[1766325216322,0.01139406,87765.0,87753.0,0.0456]
[1766325217120,0.01139471,87760.0,87753.0,0.0456]
[1766325217337,0.01139393,87766.0,87753.0,0.0456]
[1766325217540,0.01139289,87774.0,87765.0,0.08661215]
[1766325217742,0.06835426,87778.0,87765.0,0.08661215]
[1766325217957,0.0113925,87777.0,87766.0,0.01367272]
[1766325218114,0.01139237,87778.0,87766.0,0.01367272]
[1766325218295,0.0113925,87777.0,87766.0,0.01367272]
[1766325218502,0.0113925,87777.0,87769.0,0.0001]
[1766325218795,0.01139211,87780.0,87769.0,0.00586]
[1766325219000,0.0113925,87777.0,87769.0,0.00586]
[1766325219239,0.06835333,87780.0,87769.0,0.00586]
[1766325219471,0.01139237,87778.0,87769.0,0.00586]
[1766325220218,0.01139276,87775.0,87769.0,0.00586]
[1766325220447,0.01139315,87772.0,87769.0,0.00586]
[1766325220643,0.00045,87769.0,87765.0,0.08661215]
[1766325220845,0.00045,87769.0,87766.0,0.00576]
[1766325221112,0.01184354,87769.0,87766.0,0.00576]
[1766325221280,0.00045,87769.0,87766.0,0.00576]
[1766325221448,0.01184354,87769.0,87766.0,0.00576]
[1766325221648,0.00045,87769.0,87766.0,0.00576]
[1766325221849,0.01184354,87769.0,87766.0,0.00576]
[1766325222094,0.00045,87769.0,87766.0,0.00576]
[1766325222419,0.01184354,87769.0,87766.0,0.00576]
[1766325222692,0.00045,87769.0,87767.0,0.08661215]
[1766325223518,0.06834973,87784.0,87767.0,0.08661215]
[1766325223674,0.01139185,87782.0,87781.0,0.08661215]
[1766325223838,0.01139159,87784.0,87781.0,0.08661215]
[1766325224429,0.05695863,87783.0,87781.0,0.08661215]
[1766325225385,0.01139159,87784.0,87781.0,0.08661215]
[1766325225711,0.01139159,87784.0,87775.0,0.00576]
[1766325225842,0.01139224,87779.0,87776.0,0.08661215]
[1766325226055,0.05696251,87778.0,87776.0,0.08661215]
[1766325226251,0.06835404,87779.0,87776.0,0.08661215]
[1766325226709,0.05696655,87771.0,87751.0,0.08661215]
[1766325226912,0.01139432,87763.0,87752.0,0.05136]
[1766325227078,0.01139432,87763.0,87751.0,0.08671965]
[1766325227079,0.0113951,87757.0,87751.0,0.0001075]
[1766325227277,0.01139484,87759.0,87756.0,0.07748625]
[1766325227927,0.01139354,87769.0,87756.0,0.07748625]
[1766325228095,0.01139393,87766.0,87756.0,0.07748625]
[1766325228298,0.01139367,87768.0,87756.0,0.07748625]
[1766325228498,0.01139354,87769.0,87756.0,0.07748625]
[1766325228696,0.01139341,87770.0,87756.0,0.07748625]
[1766325228907,0.01139328,87771.0,87756.0,0.07748625]
[1766325229351,0.01139367,87768.0,87756.0,0.07748625]
[1766325229630,0.01139458,87761.0,87756.0,0.07748625]
[1766325229851,0.01139549,87754.0,87751.0,0.0001075]
[1766325230051,0.0569781,87753.0,87752.0,0.07748625]
[1766325230257,0.0569781,87753.0,87751.0,0.0001075]
[1766325231606,0.01139549,87754.0,87751.0,0.0001075]
[1766325231806,0.06837358,87754.0,87751.0,0.0001075]
[1766325232037,0.05697875,87752.0,87751.0,0.0001075]
[1766325233104,0.05697875,87752.0,87736.0,0.0457]
[1766325233105,0.01139705,87742.0,87739.0,0.00576]
[1766325233299,0.01139705,87742.0,87741.0,0.07748625]
[1766325233501,0.01139679,87744.0,87741.0,0.07758625]
[1766325233981,0.05698135,87748.0,87741.0,0.07758625]
[1766325234176,0.01139549,87754.0,87742.0,0.01367646]
[1766325234356,0.01139575,87752.0,87741.0,0.07758625]
[1766325234555,0.01139562,87753.0,87741.0,0.07758625]
[1766325234556,0.05698265,87747.0,87741.0,0.07758625]
[1766325234782,0.01139562,87753.0,87741.0,0.07758625]
[1766325234982,0.01139601,87750.0,87741.0,0.07758625]
[1766325235183,0.01139575,87752.0,87741.0,0.07758625]
[1766325235382,0.0113951,87757.0,87741.0,0.07758625]
[1766325235589,0.01139536,87755.0,87742.0,0.01367646]
[1766325235795,0.01139484,87759.0,87755.0,0.07748625]
[1766325236137,0.06836983,87758.0,87755.0,0.07748625]
[1766325236268,0.01139471,87760.0,87755.0,0.07748625]
[1766325236476,0.01139497,87758.0,87755.0,0.07748625]
[1766325236878,0.01139484,87759.0,87755.0,0.07748625]
[1766325237078,0.01139497,87758.0,87755.0,0.07748625]
[1766325237276,0.01139484,87759.0,87755.0,0.07748625]
[1766325237921,0.01139471,87760.0,87755.0,0.07748625]
[1766325238226,0.06837039,87758.0,87755.0,0.07748625]
[1766325238429,0.06837422,87753.0,87751.0,0.00576]
[1766325239001,0.01139562,87753.0,87751.0,0.00576]
[1766325239422,0.01139549,87754.0,87751.0,0.00576]
[1766325240015,0.0569781,87753.0,87751.0,0.00576]
[1766325240636,0.23929484,87758.0,87751.0,0.00576]
[1766325240637,0.0113951,87757.0,87751.0,0.00576]
[1766325240797,0.0113951,87757.0,87756.0,0.07748625]
[1766325240996,0.0001,87761.0,87756.0,0.07748625]
[1766325241604,0.0001,87761.0,87757.0,0.01943412]
[1766325241805,0.0001,87761.0,87758.0,0.01367396]
[1766325242251,0.0001,87761.0,87757.0,0.00576]
[1766325242451,0.0001,87761.0,87758.0,0.01367396]
[1766325242829,0.01139224,87779.0,87759.0,0.04564]
[1766325243006,0.01149988,87779.0,87778.0,0.07748625]
[1766325243509,0.00010764,87779.0,87778.0,0.07748625]